bitfinex-derivatives/quotes_ETHF0:USTF0_20260306
["timestamp","ask_amount","ask_price","bid_price","bid_amount"]
[1772823458693,0.55895907,1975.9,1975.4,0.59896804]
[1772823459693,0.55895907,1975.9,1975.3,40.8]
[1772823459897,0.55895907,1975.9,1975.1,0.59896804]
[1772823460395,0.55895907,1975.9,1975.2,0.59896804]
[1772823460891,0.55895907,1975.9,1975.1,41.39896804]
[1772823462494,0.55895907,1975.9,1975.1,0.59896804]
[1772823473602,0.55243784,1975.7,1974.9,0.59896804]
[1772823478205,0.56098875,1975.5,1974.9,0.59896804]
[1772823482411,0.57892799,1975.8,1974.9,0.59896804]
[1772823482708,0.57892799,1975.8,1975.1,0.55987196]
[1772823484507,0.00652123,1975.9,1975.1,0.55987196]
[1772823484712,0.00652123,1975.9,1975.3,0.55987196]
[1772823486113,0.58544922,1975.9,1975.3,0.55987196]
[1772823486915,0.58544922,1975.9,1975.2,0.55987196]
[1772823487625,0.00652123,1975.9,1975.2,0.55987196]
[1772823488019,0.58544922,1975.9,1975.2,0.55987196]
[1772823491215,0.58544922,1975.9,1975.0,0.55987196]
[1772823493719,0.57892799,1975.8,1975.0,0.55987196]
[1772823493925,0.57892799,1975.6,1974.9,0.55987196]
[1772823496124,0.57892799,1975.6,1974.7,41.35987196]
[1772823496925,0.57892799,1975.6,1974.8,0.55987196]
[1772823499929,0.57892799,1975.8,1974.8,0.55987196]
[1772823500129,0.57892799,1975.6,1974.8,0.55987196]
[1772823509331,0.57892799,1975.6,1974.2,13.2025719]
[1772823509332,0.57892799,1975.4,1974.2,23.76462942]
[1772823509534,0.57892799,1975.0,1973.6,1.61529633]
[1772823509734,0.57892799,1974.8,1973.6,1.61529633]
[1772823510037,0.57892799,1974.6,1973.8,0.55987196]
[1772823510430,0.57892799,1974.6,1973.7,0.55987196]
[1772823510636,0.57892799,1974.6,1973.7,0.56462176]
[1772823512535,6.628,1975.0,1973.7,0.56462176]
[1772823512536,0.57180334,1974.8,1973.7,0.56462176]
[1772823514038,0.57180334,1974.8,1973.9,0.56558717]
[1772823514240,6.629,1975.4,1974.1,0.56558717]
[1772823514440,0.57180334,1975.2,1974.1,0.56558717]
[1772823516038,0.57180334,1975.2,1974.3,0.56558717]
[1772823516638,0.57180334,1975.6,1974.5,0.56558717]
[1772823516934,0.57180334,1975.6,1974.7,0.56558717]
[1772823522140,0.57180334,1975.6,1974.9,0.56558717]
[1772823525147,0.57180334,1975.8,1974.9,0.56558717]
[1772823527645,0.57180334,1975.8,1975.1,0.56558717]
[1772823527852,0.57180334,1975.8,1975.2,0.56558717]
[1772823528251,0.57180334,1975.8,1975.1,0.00369458]
[1772823528650,0.57180334,1975.7,1975.1,0.00369458]
[1772823528853,0.57180334,1975.7,1974.8,18.12615995]
[1772823528854,0.57180334,1975.3,1974.5,0.56558717]
[1772823529449,0.57180334,1975.3,1974.2,16.293]
[1772823529749,0.57180334,1975.3,1974.3,0.56558717]
[1772823529953,0.57180334,1975.3,1974.4,41.36558717]
[1772823530149,0.57180334,1975.3,1974.5,0.56558717]
[1772823535047,0.57180334,1975.3,1974.3,0.56558717]
[1772823535651,0.57180334,1975.3,1974.4,0.56423559]
[1772823535853,0.25312,1975.5,1974.2,0.56790971]
[1772823535854,0.57778471,1975.1,1974.2,0.56790971]
[1772823536357,0.57778471,1975.1,1974.2,41.36790971]
[1772823537057,0.57778471,1975.1,1974.3,0.56423559]
[1772823539358,0.57778471,1974.9,1973.6,0.56423559]
[1772823539658,0.57778471,1974.7,1973.6,0.56423559]
[1772823539861,0.57778471,1974.7,1973.8,0.56423559]
[1772823540360,0.57778471,1974.7,1973.8,0.570007]
[1772823545561,0.57366624,1974.9,1974.0,0.55999963]
[1772823549167,17.55314908,1975.5,1974.1,0.55999963]
[1772823549168,0.57366624,1975.4,1974.1,0.55999963]
[1772823550259,0.57366624,1975.2,1974.1,0.55999963]
[1772823555070,0.57366624,1975.2,1974.2,0.55999963]
[1772823556473,0.57366624,1975.0,1974.2,0.55999963]
[1772823572893,0.57366624,1975.0,1974.3,0.5488085]
[1772823575095,6.81052578,1974.9,1974.3,0.5488085]
[1772823575394,0.57748924,1974.8,1974.3,0.5488085]
[1772823575992,0.57748924,1974.9,1974.3,0.5488085]
[1772823579697,0.57748924,1975.1,1974.3,0.5488085]
[1772823579892,0.57748924,1974.9,1974.3,0.5488085]
[1772823580796,0.57748924,1975.1,1974.3,0.5488085]
[1772823580992,6.23441846,1975.0,1974.3,0.5488085]
[1772823581300,0.57748924,1975.1,1974.3,0.5488085]
[1772823581596,6.81178665,1975.0,1974.3,0.5488085]
[1772823581793,0.57748924,1975.0,1974.3,0.5488085]
[1772823581993,0.57748924,1975.0,1974.4,0.5488085]
[1772823588303,0.57748924,1975.0,1974.3,0.5488085]
[1772823588503,0.57748924,1974.8,1974.3,0.5488085]
[1772823589003,0.57748924,1975.0,1974.3,0.5488085]
[1772823595612,0.59594853,1974.8,1974.3,0.5488085]
[1772823598507,2.55408702,1975.0,1974.3,0.5488085]
[1772823598812,2.55408702,1975.0,1974.0,3.79329844]
[1772823598813,0.59594853,1974.5,1974.1,0.54898272]
[1772823599011,0.59950074,1974.5,1974.1,0.54898272]
[1772823599213,0.00355221,1974.5,1974.1,0.54898272]
[1772823599814,0.59950074,1974.5,1974.1,0.54898272]
[1772823600212,0.00355221,1974.5,1974.1,0.54898272]
[1772823600412,0.59594853,1974.8,1974.1,0.54898272]
[1772823601314,0.00429855,1974.8,1974.3,0.54898272]
[1772823601513,0.59594853,1975.3,1974.7,0.54898272]
[1772823602415,0.56673618,1975.2,1974.7,0.54898272]
[1772823602816,0.57097743,1975.2,1974.7,0.54898272]
[1772823603611,0.56673618,1974.8,1974.4,16.80153528]
[1772823604117,0.56673618,1974.8,1974.5,0.54953528]
[1772823604615,0.57097743,1975.2,1974.5,0.54953528]
[1772823604816,0.57097743,1975.2,1974.7,0.54953528]
[1772823606915,0.00424125,1975.2,1974.7,0.54953528]
[1772823607324,0.56673618,1975.3,1974.7,0.54953528]
[1772823607719,0.56673618,1975.7,1974.7,0.54953528]
[1772823608022,0.56673618,1975.5,1974.7,0.54953528]
[1772823608224,0.57110609,1975.5,1974.9,0.54953528]
[1772823610524,0.56673618,1975.7,1975.0,0.54953528]
[1772823611620,0.57302893,1975.7,1975.0,0.54953528]
[1772823612223,0.00629275,1975.7,1975.0,0.54953528]
[1772823612420,0.57302893,1975.7,1975.0,0.54953528]
[1772823613619,0.57302893,1975.7,1974.9,16.80753528]
[1772823614129,0.57302893,1975.7,1974.8,41.34953528]
[1772823616030,0.57302893,1975.7,1974.9,0.54953528]
[1772823620521,0.00629275,1975.7,1975.1,0.54953528]
[1772823620727,10.84963032,1976.3,1975.1,0.54953528]
[1772823620928,0.56673618,1976.1,1975.1,0.54953528]
[1772823621730,0.57178975,1976.1,1975.1,0.54953528]
[1772823623332,0.00505357,1976.1,1975.1,0.54953528]
[1772823624434,0.57178975,1976.1,1975.1,0.54953528]
[1772823627436,0.00505357,1976.1,1975.1,0.54953528]
[1772823627636,0.57178975,1976.1,1975.1,0.54953528]
[1772823628431,0.00505357,1976.1,1975.5,0.54953528]
[1772823628636,0.00505357,1976.1,1975.5,0.5560486]
[1772823628835,0.57178975,1976.1,1975.5,0.5560486]
[1772823630336,0.56673618,1975.7,1975.4,16.34]
[1772823630533,0.56673618,1975.7,1975.2,0.54953528]
[1772823630738,1.95585882,1976.0,1975.2,0.54953528]
[1772823631040,0.57178975,1976.1,1975.3,0.54953528]
[1772823631537,0.57178975,1976.1,1975.3,0.55375046]
[1772823631740,0.57178975,1976.1,1975.5,0.54953528]
[1772823632438,0.57737358,1976.2,1975.7,0.59214557]
[1772823632735,0.53164698,1976.5,1975.7,0.59214557]
[1772823632941,0.53164698,1976.7,1976.1,0.59214557]
[1772823633343,0.53164698,1976.9,1976.3,0.59214557]
[1772823633541,0.53685398,1976.9,1976.3,0.59214557]
[1772823635434,0.53685398,1976.9,1976.1,0.59214557]
[1772823635638,0.52507665,1976.7,1976.1,0.59214557]
[1772823641542,0.005207,1976.9,1976.1,0.59214557]
[1772823641746,0.52828735,1976.8,1976.1,0.59214557]
[1772823642648,0.005207,1976.9,1976.1,0.59214557]
[1772823643453,0.005207,1976.9,1976.3,0.59214557]
[1772823643747,0.005207,1976.9,1976.4,0.59214557]
[1772823644148,0.53577778,1977.5,1976.4,0.59214557]
[1772823644349,0.53577778,1977.3,1976.4,0.59214557]
[1772823645254,0.54076592,1977.3,1976.4,0.59214557]
[1772823645842,0.54091303,1977.3,1976.4,0.59214557]
[1772823648849,0.53884934,1977.1,1976.3,0.59214557]
[1772823651451,0.50998122,1976.9,1976.0,0.59214557]
[1772823659060,0.49352848,1977.1,1976.1,0.55526897]
[1772823659268,0.49352848,1977.2,1976.3,0.55526897]
[1772823659959,0.49851662,1977.3,1976.4,0.55526897]
[1772823660155,0.49851662,1977.3,1976.5,0.55526897]
[1772823661568,0.49127783,1977.2,1976.5,0.55526897]
[1772823661961,0.49173694,1977.0,1976.3,0.56583251]
[1772823662762,0.00498814,1977.3,1976.3,0.56583251]
[1772823662967,0.53316376,1977.1,1976.3,0.56583251]
[1772823663168,0.53316376,1977.2,1976.3,0.56583251]
[1772823664269,0.53316376,1977.1,1976.3,0.56583251]
[1772823664972,0.52355432,1977.2,1976.3,0.56583251]
[1772823665375,0.52854246,1977.3,1976.3,0.56583251]
[1772823665874,0.52355432,1977.2,1976.3,0.56583251]
[1772823668674,0.51885683,1977.3,1976.3,0.56583251]
[1772823669178,0.51885683,1977.3,1976.4,0.56583251]
[1772823670578,0.00498814,1977.3,1976.5,0.56583251]
[1772823670881,0.5292466,1977.3,1976.5,0.56583251]
[1772823677174,0.51956135,1977.1,1976.2,0.56583251]
[1772823677376,0.51956135,1976.9,1976.2,0.56583251]
[1772823684689,0.50387162,1977.2,1976.3,0.56583251]
[1772823684888,0.00498814,1977.3,1976.6,0.56583251]
[1772823685888,0.50387162,1977.7,1976.6,0.56583251]
[1772823686080,6.10651891,1977.6,1976.6,0.56583251]
[1772823686280,0.50387162,1977.7,1976.6,0.56583251]
[1772823686788,0.50775627,1977.7,1976.8,0.56583251]
[1772823686991,0.50775627,1977.7,1976.8,0.57030556]
[1772823689190,0.00388465,1977.7,1976.8,0.57030556]
[1772823689585,0.00388465,1977.7,1977.0,0.56583251]
[1772823689893,0.51964639,1978.3,1977.1,0.56583251]
[1772823690088,4.21254187,1978.5,1977.5,0.56583251]
[1772823690290,0.51964639,1978.8,1977.6,0.56583251]
[1772823690490,0.52182519,1978.6,1977.6,0.56583251]
[1772823690888,0.52607686,1978.6,1977.6,0.56583251]
[1772823691193,0.00425167,1978.6,1977.6,0.56583251]
[1772823691395,0.52607686,1978.6,1977.6,0.56583251]
[1772823692290,0.52575528,1979.1,1977.8,0.56587277]
[1772823692496,0.52575528,1979.1,1978.0,0.56587277]
[1772823693393,0.00641995,1979.1,1978.0,0.56587277]
[1772823694390,0.00641995,1979.1,1978.2,0.56587277]
[1772823694591,0.00641995,1979.1,1978.3,0.56587277]
[1772823694993,0.00641995,1979.1,1978.5,0.56587277]
[1772823695197,0.54344547,1979.1,1978.5,0.56587277]
[1772823695891,0.00641995,1979.1,1978.5,0.56587277]
[1772823696293,0.55808327,1979.1,1978.5,0.56587277]
[1772823696494,0.55808327,1979.1,1978.4,40.8]
[1772823696996,0.55808327,1979.1,1978.2,0.57181201]
[1772823696997,0.55166332,1979.0,1978.2,0.00593924]
[1772823697394,0.55166332,1979.0,1978.2,40.80593924]
[1772823697795,0.55166332,1979.0,1978.2,0.00593924]
[1772823698193,0.55166332,1979.0,1978.2,0.57181201]
[1772823700994,0.54986603,1978.8,1978.2,0.57181201]
[1772823701394,0.54986603,1978.8,1978.2,0.00593924]
[1772823703199,0.54838072,1978.6,1977.9,41.36587277]
[1772823703600,0.54838072,1978.6,1978.0,0.56587277]
[1772823704201,0.54838072,1978.6,1978.0,0.57078813]
[1772823704797,0.54254163,1978.8,1978.0,0.57078813]
[1772823706407,0.53874768,1979.0,1978.0,0.57078813]
[1772823706601,0.00641995,1979.1,1978.1,0.56587277]
[1772823708714,0.54695554,1979.1,1978.1,0.56587277]
[1772823709016,0.54053559,1978.9,1978.1,0.56587277]
[1772823711310,0.00641995,1979.1,1978.1,0.56587277]
[1772823712620,0.00641995,1979.1,1978.3,0.56587277]
[1772823712819,0.00641995,1979.1,1978.5,0.56587277]
[1772823713221,0.54319743,1979.1,1978.5,0.56587277]
[1772823713421,0.54319743,1979.1,1978.4,17.05787277]
[1772823713910,0.54319743,1979.1,1978.4,0.56587277]
[1772823714315,0.54319743,1979.1,1978.2,0.56587277]
[1772823716016,0.54319743,1979.1,1978.0,0.00491536]
[1772823716017,0.53788184,1978.7,1978.0,0.00491536]
[1772823716212,0.53788184,1978.5,1978.0,0.00491536]
[1772823716417,0.53788184,1978.5,1977.6,0.58806075]
[1772823716619,0.53788184,1978.5,1977.8,0.58806075]
[1772823717318,0.53788184,1978.5,1977.8,0.00589941]
[1772823717514,6.97148631,1978.8,1977.6,0.58806075]
[1772823717515,0.53814079,1978.3,1977.6,0.58806075]
[1772823717716,0.53814079,1978.3,1977.4,0.58806075]
[1772823718522,0.53814079,1978.3,1977.4,0.59248683]
[1772823720725,0.52842046,1978.5,1977.4,0.59248683]
[1772823720916,0.52842046,1978.3,1977.4,0.59248683]
[1772823721421,0.52842046,1978.1,1977.4,0.59248683]
[1772823722320,0.52847618,1978.4,1977.4,0.59248683]
[1772823723619,4.21254187,1978.8,1977.4,0.59248683]
[1772823723620,0.53075737,1978.6,1977.6,0.58326813]
[1772823723820,0.53075737,1978.6,1977.8,0.58326813]
[1772823726321,0.52193502,1978.8,1978.0,0.58326813]
[1772823727126,0.52135262,1978.6,1978.0,0.58326813]
[1772823728626,0.52135262,1978.6,1977.8,0.58326813]
[1772823729227,0.51706627,1978.4,1977.4,0.58769421]
[1772823729430,0.51706627,1978.2,1977.4,0.58769421]
[1772823730725,0.76930852,1978.3,1977.4,0.58769421]
[1772823730925,0.51655852,1978.3,1977.4,0.58769421]
[1772823732129,0.51655852,1978.5,1977.4,0.58769421]
[1772823733829,6.07670916,1978.4,1977.4,0.58769421]
[1772823734028,0.5187087,1978.4,1977.4,0.58769421]
[1772823735033,0.52036565,1978.6,1977.6,0.58326813]
[1772823738734,0.52778917,1978.4,1977.6,0.58326813]
[1772823739132,0.25278,1978.1,1977.4,0.00442608]
[1772823739331,0.52778917,1978.0,1977.4,0.00442608]
[1772823740332,0.52778917,1977.8,1977.1,41.38326813]
[1772823740531,0.52778917,1977.8,1977.1,0.58326813]
[1772823741332,0.52778917,1977.8,1977.1,0.58773257]
[1772823742630,0.52778917,1977.8,1977.1,0.00446444]
[1772823742836,0.52778917,1977.8,1977.1,0.58773257]
[1772823745733,0.53599222,1977.6,1976.8,0.58326813]
[1772823746245,0.53599222,1977.4,1976.8,0.58326813]
[1772823746942,0.00376008,1977.4,1976.8,0.58896062]
[1772823747342,0.53617055,1977.4,1976.8,0.58896062]
[1772823749543,0.00376008,1977.4,1976.8,0.58896062]
[1772823750043,0.53496487,1977.4,1976.8,0.58896062]
[1772823750538,0.00376008,1977.4,1976.8,0.58896062]
[1772823750733,0.53110353,1977.7,1976.8,0.58896062]
[1772823751743,0.5367827,1977.7,1976.8,0.58896062]
[1772823753047,0.5367827,1977.7,1977.0,0.55639469]
[1772823753048,0.00567917,1977.7,1977.0,0.55639469]
[1772823753237,0.53064666,1978.3,1977.4,0.55639469]
[1772823753441,0.53064666,1978.3,1977.5,0.55639469]
[1772823753640,0.25272,1978.6,1977.5,0.55639469]
[1772823753641,0.53064666,1978.5,1977.5,0.55639469]
[1772823754646,0.00552843,1978.5,1977.5,0.55639469]
[1772823754838,0.00552843,1978.5,1977.7,0.55639469]
[1772823755248,0.00552843,1978.5,1977.8,0.55639469]
[1772823756744,0.53950825,1978.5,1977.8,0.55639469]
[1772823758750,0.00552843,1978.5,1977.8,0.55639469]
[1772823760251,0.53533797,1978.9,1977.8,0.55639469]
[1772823760453,0.53533797,1978.8,1977.8,0.55639469]
[1772823761353,0.53954343,1978.8,1977.8,0.55639469]
[1772823764555,0.00420546,1978.8,1978.0,0.55639469]
[1772823766851,0.00420546,1978.8,1978.2,0.55639469]
[1772823767058,0.00420546,1978.8,1978.2,0.56185254]
[1772823768057,0.53507105,1978.8,1978.2,0.56185254]
[1772823768559,0.53507105,1978.8,1978.2,0.00545785]
[1772823770560,0.53507105,1978.8,1978.2,0.56185254]
[1772823771756,0.00420546,1978.8,1978.2,0.56185254]
[1772823772662,0.53720326,1978.8,1978.2,0.56185254]
[1772823773566,0.53720326,1978.8,1978.2,0.00545785]
[1772823775369,0.53720326,1978.8,1978.2,0.56185254]
[1772823775764,0.00420546,1978.8,1978.2,0.56185254]
[1772823776970,0.53523225,1978.8,1978.2,0.56185254]
[1772823777761,0.53523225,1978.8,1978.2,0.00545785]
[1772823779471,0.53523225,1978.8,1978.2,0.57189648]
[1772823780972,0.53523225,1978.8,1978.2,0.00545785]
[1772823781174,0.53523225,1978.8,1978.0,0.56643863]
[1772823781775,0.5270728,1978.6,1977.7,0.58275421]
[1772823782276,0.00420546,1978.8,1977.7,0.58896393]
[1772823782470,6.59311311,1978.7,1977.7,0.58896393]
[1772823782665,6.59311311,1978.6,1977.7,0.58896393]
[1772823782875,0.52794381,1978.6,1977.7,0.58896393]
[1772823784166,0.52794381,1978.4,1977.7,0.58896393]
[1772823784976,0.52794381,1978.4,1977.7,41.38896393]
[1772823785374,0.52794381,1978.4,1977.7,0.58896393]
[1772823785880,0.55002871,1978.2,1977.5,0.58275421]
[1772823786077,0.55002871,1978.0,1977.5,0.58275421]
[1772823786571,0.55002871,1978.0,1976.7,19.395]
[1772823786777,0.55002871,1978.0,1976.8,0.58275421]
[1772823787275,0.55002871,1978.0,1977.0,0.58275421]
[1772823792177,0.55002871,1978.0,1977.1,0.58275421]
[1772823792579,0.55002871,1978.0,1977.3,0.58275421]
[1772823794379,0.54234806,1978.1,1977.3,0.58275421]
[1772823799487,0.54422513,1978.3,1977.3,0.58275421]
[1772823801197,0.54422513,1978.3,1977.4,0.58275421]
[1772823803997,0.54399143,1978.6,1977.6,0.58275421]
[1772823804296,0.54399143,1978.5,1977.6,0.58275421]
[1772823805598,4.46943733,1978.8,1977.6,0.58275421]
[1772823805599,0.54387787,1978.4,1977.6,0.58275421]
[1772823806203,0.54387787,1978.6,1977.6,0.58275421]
[1772823806398,0.5507967,1978.4,1977.6,0.58275421]
[1772823807803,0.5507967,1978.6,1977.6,0.58275421]
[1772823809395,0.5507967,1978.6,1977.7,0.25283]
[1772823809596,0.55108834,1978.7,1977.8,0.58275421]
[1772823809992,0.00420546,1978.8,1977.8,0.58275421]
[1772823809993,0.5552938,1978.8,1977.8,0.58275421]
[1772823811105,0.00420546,1978.8,1978.0,0.58275421]
[1772823812200,0.55214343,1979.4,1978.2,0.55838325]
[1772823812594,0.55214343,1979.4,1978.4,0.55838325]
[1772823812895,7.17937894,1979.6,1978.6,0.55838325]
[1772823813100,0.55437894,1979.6,1978.6,0.5646511]
[1772823813303,0.56008549,1979.6,1978.6,0.5646511]
[1772823814304,0.55437894,1979.3,1978.4,0.55838325]
[1772823814603,0.25265,1979.1,1978.4,0.55838325]
[1772823814802,0.55437894,1979.0,1978.4,0.55838325]
[1772823815202,0.55437894,1979.0,1978.4,0.56469125]
[1772823815405,0.55437894,1979.0,1978.4,0.006308]
[1772823817006,0.55437894,1979.0,1978.1,0.55838325]
[1772823817807,0.55437894,1979.0,1978.1,0.5646959]
[1772823818102,0.55437894,1978.6,1978.1,0.00631265]
[1772823818306,0.55437894,1978.6,1977.9,0.55838325]
[1772823819305,0.55437894,1978.6,1977.9,0.56495034]
[1772823821611,0.53673763,1978.7,1977.9,0.56495034]
[1772823823601,0.53757718,1978.9,1977.9,0.56495034]
[1772823824006,6.06257829,1978.8,1977.9,0.56495034]
[1772823824207,0.53757718,1978.7,1977.9,0.56495034]
[1772823831913,0.55437894,1979.2,1978.1,0.55838325]
[1772823832310,0.55437894,1979.2,1978.3,0.55838325]
[1772823833508,0.55437894,1979.1,1978.3,0.55838325]
[1772823839512,0.54573813,1978.9,1978.0,0.55946804]
[1772823841216,0.54573813,1978.5,1977.5,0.55946804]
[1772823841718,0.56062004,1978.3,1977.5,0.55946804]
[1772823842316,6.62901854,1978.2,1977.5,0.0051774]
[1772823842621,0.56062004,1978.1,1977.5,0.0051774]
[1772823842920,0.56062004,1978.1,1977.5,0.56512479]
[1772823844420,0.55105855,1978.0,1977.2,0.55994739]
[1772823844623,0.55105855,1977.9,1977.2,0.55994739]
[1772823844921,0.55105855,1977.9,1977.2,41.35994739]
[1772823845619,0.55105855,1977.9,1977.2,0.56533556]
[1772823846816,0.55720017,1977.8,1977.2,0.56533556]
[1772823847024,0.55720017,1977.8,1977.2,0.00538817]
[1772823847517,0.55720017,1977.8,1977.2,0.56533556]
[1772823847920,0.55720017,1977.8,1977.2,0.00538817]
[1772823848224,0.55720017,1977.6,1977.0,0.55994739]
[1772823848418,0.55720017,1977.6,1976.8,0.55994739]
[1772823848724,0.56062004,1977.5,1976.8,0.55994739]
[1772823849124,0.56062004,1977.5,1976.8,0.56645373]
[1772823851027,6.624,1977.6,1976.8,0.56645373]
[1772823851224,7.18326775,1977.6,1976.8,0.56645373]
[1772823853023,0.56062004,1977.5,1976.8,0.56645373]
[1772823854029,0.56062004,1977.9,1976.8,0.56645373]
[1772823856329,0.25281,1977.8,1976.8,0.56645373]
[1772823856633,0.56062004,1977.7,1976.8,0.56645373]
[1772823857836,0.56062004,1977.5,1976.8,0.56645373]
[1772823858132,0.56062004,1977.4,1976.9,0.55994739]
[1772823861041,6.626,1977.5,1976.9,0.55994739]
[1772823861540,7.18662004,1977.5,1976.9,0.55994739]
[1772823861741,0.56062004,1977.4,1976.8,0.56645373]
[1772823873650,0.52549245,1977.2,1976.8,0.56645373]
[1772823876752,0.52549245,1977.2,1976.8,0.00650634]
[1772823877150,0.52549245,1977.2,1976.8,0.59006265]
[1772823878953,4.7346483,1977.4,1976.8,0.59006265]
[1772823879151,12.71732436,1977.3,1976.8,0.59006265]
[1772823879454,6.08909145,1977.2,1976.8,0.59006265]
[1772823879655,6.628,1977.3,1976.8,0.59006265]
[1772823879957,7.15315041,1977.3,1976.8,0.59006265]
[1772823880155,6.08969394,1977.2,1976.8,0.59006265]
[1772823880357,7.15315041,1977.3,1976.8,0.59006265]
[1772823880557,6.61456217,1977.2,1976.8,0.59006265]
[1772823880761,0.52461275,1977.2,1976.8,0.59006265]
[1772823882558,7.1549211,1977.4,1976.8,0.59006265]
[1772823882757,6.0908653,1977.3,1976.8,0.59006265]
[1772823882958,7.1549211,1977.4,1976.8,0.59006265]
[1772823883254,6.6177853,1977.3,1976.8,0.59006265]
[1772823883451,0.5269211,1977.3,1976.8,0.59006265]
[1772823884360,0.5269211,1977.4,1976.8,0.59006265]
[1772823884562,6.09201807,1977.3,1976.8,0.59006265]
[1772823884862,0.52613301,1977.5,1976.8,0.59006265]
[1772823885057,6.58696157,1977.4,1976.8,0.59006265]
[1772823885258,6.09560301,1977.3,1976.8,0.59006265]
[1772823885560,0.52613301,1977.5,1976.8,0.59006265]
[1772823885763,6.58815762,1977.4,1976.8,0.59006265]
[1772823885961,6.09672293,1977.3,1976.8,0.59006265]
[1772823886163,0.52613301,1977.5,1976.8,0.59006265]
[1772823886362,6.58842,1977.4,1976.8,0.59006265]
[1772823886559,6.09697487,1977.3,1976.8,0.59006265]
[1772823886864,0.5260824,1977.4,1976.8,0.59006265]
[1772823887057,6.09614492,1977.3,1976.8,0.59006265]
[1772823887261,0.5260824,1977.4,1976.8,0.59006265]
[1772823887463,6.09540748,1977.3,1976.8,0.59006265]
[1772823887664,0.5260824,1977.4,1976.8,0.59006265]
[1772823887862,6.09402089,1977.3,1976.8,0.59006265]
[1772823888066,0.5260824,1977.4,1976.8,0.59006265]
[1772823888266,6.09384234,1977.3,1976.8,0.59006265]
[1772823888565,0.5260824,1977.4,1976.8,0.59006265]
[1772823888765,6.09356728,1977.3,1976.8,0.59006265]
[1772823888966,0.52608368,1977.5,1976.8,0.59006265]
[1772823889266,6.58475523,1977.4,1976.8,0.59006265]
[1772823889465,6.0935575,1977.3,1976.8,0.59006265]
[1772823889665,7.15408368,1977.5,1976.8,0.59006265]
[1772823889862,6.09351001,1977.4,1976.8,0.59006265]
[1772823890065,6.09351001,1977.3,1976.8,0.59006265]
[1772823890366,7.15408368,1977.5,1976.8,0.59006265]
[1772823890568,6.09513916,1977.4,1976.8,0.59006265]
[1772823890866,7.15408368,1977.5,1976.8,0.59006265]
[1772823891066,0.52608368,1977.5,1976.8,0.59006265]
[1772823892069,0.52608368,1977.5,1976.9,0.58355631]
[1772823899972,6.628,1977.6,1976.9,0.58355631]
[1772823899973,0.49188739,1977.3,1976.9,0.58355631]
[1772823900574,0.49188739,1977.3,1976.8,0.00650634]
[1772823900870,0.48699156,1977.1,1976.7,0.57157507]
[1772823901777,0.48699156,1977.1,1976.7,0.57574865]
[1772823902075,0.48699156,1977.1,1976.7,0.00417358]
[1772823902278,0.48689309,1976.9,1976.4,0.55506946]
[1772823903174,0.48689309,1976.9,1976.4,0.56050851]
[1772823903577,0.48689309,1976.9,1975.6,10.81514752]
[1772823903578,0.48689309,1976.9,1976.1,0.55506946]
[1772823904572,0.48689309,1976.9,1976.1,0.56074802]
[1772823908377,7.11385566,1977.2,1976.4,0.55506946]
[1772823908579,6.628,1977.2,1976.4,0.55506946]
[1772823908979,7.11385566,1977.2,1976.4,0.55506946]
[1772823909279,0.48585566,1977.1,1976.4,3.18906946]
[1772823909481,0.48585566,1977.1,1976.5,0.55506946]
[1772823910180,0.48585566,1977.1,1976.3,0.55506946]
[1772823911280,0.48455801,1976.9,1976.3,0.55506946]
[1772823918686,0.48646958,1976.7,1976.1,0.56074802]
[1772823918884,0.48646958,1976.6,1976.1,0.56074802]
[1772823921482,0.48646958,1976.6,1976.1,0.00567856]
[1772823921684,6.63542373,1976.7,1975.9,0.55506946]
[1772823921685,0.48916865,1976.4,1975.9,0.55506946]
[1772823922684,0.48916865,1976.4,1975.9,0.56069864]
[1772823923985,0.48679355,1976.6,1975.9,0.56069864]
[1772823924185,0.49321728,1976.7,1975.9,0.56069864]
[1772823925087,0.49479195,1977.1,1976.0,0.55506946]
[1772823925288,0.49479195,1977.2,1976.2,0.55506946]
[1772823925489,0.49479195,1977.3,1976.2,0.55506946]
[1772823926192,0.49982192,1977.3,1976.2,0.55506946]
[1772823926388,0.49982192,1977.3,1976.4,0.55506946]
[1772823929489,0.50493498,1977.3,1976.4,0.55506946]
[1772823930089,0.49990501,1977.2,1976.4,0.55506946]
[1772823930992,0.50051516,1977.0,1976.4,0.55506946]
[1772823932489,7.12036048,1977.2,1976.4,0.55506946]
[1772823932885,0.49236048,1977.1,1976.4,0.55506946]
[1772823934494,0.49271582,1977.2,1976.4,0.55506946]
[1772823941601,6.63302997,1977.3,1976.4,3.44204946]
[1772823941602,0.00502997,1977.3,1976.4,3.44204946]
[1772823941800,0.00502997,1977.3,1976.5,0.58553504]
[1772823943896,0.49177919,1977.6,1976.7,0.58553504]
[1772823944099,0.49680916,1977.7,1976.9,0.58553504]
[1772823944400,10.84951981,1978.1,1976.9,0.58553504]
[1772823944401,0.49680916,1978.0,1976.9,0.58553504]
[1772823944596,0.49680916,1978.0,1977.1,0.58553504]
[1772823944796,0.48700759,1978.2,1977.1,0.58553504]
[1772823945100,0.49108115,1978.2,1977.1,0.58553504]
[1772823946304,0.48700759,1978.1,1977.1,0.58553504]
[1772823946801,0.74515886,1978.2,1977.1,0.58553504]
[1772823947207,0.4883253,1978.1,1977.1,0.58553504]
[1772823949097,0.00407356,1978.2,1977.1,0.58553504]
[1772823949299,0.00407356,1978.2,1977.3,0.58553504]
[1772823949501,0.00407356,1978.2,1977.3,0.59208412]
[1772823950007,0.00407356,1978.2,1977.4,40.8]
[1772823950202,0.00407356,1978.2,1977.5,0.58553504]
[1772823950805,0.4533932,1978.2,1977.5,0.58553504]
[1772823955501,0.4533932,1978.2,1977.4,40.8]
[1772823955502,0.4533932,1978.2,1977.4,0.58553504]
[1772823960013,0.44489522,1978.2,1977.4,0.58553504]
[1772823960410,0.00407356,1978.2,1977.4,0.58553504]
[1772823961303,0.44464875,1978.2,1977.4,0.58553504]
[1772823965509,0.00407356,1978.2,1977.4,0.58553504]
[1772823965717,0.00407356,1978.2,1977.4,3.21953504]
[1772823966017,0.00407356,1978.2,1977.5,0.57699062]
[1772823969413,0.43775282,1978.7,1977.7,0.56528424]
[1772823969812,0.43775282,1978.8,1977.9,0.56528424]
[1772823970313,0.44213794,1978.8,1977.9,0.56528424]
[1772823971313,6.49996963,1978.7,1977.9,0.56528424]
[1772823971517,0.43759608,1978.7,1977.9,0.56528424]
[1772823973822,0.44499996,1978.5,1977.9,0.56528424]
[1772823974420,0.44499996,1978.7,1977.9,0.56528424]
[1772823974625,0.44497271,1978.5,1977.9,0.56528424]
[1772823977324,0.4453756,1978.3,1977.6,0.56528424]
[1772823977524,0.4453756,1978.1,1977.6,0.56528424]
[1772823978522,0.4453756,1978.1,1977.4,0.56528424]
[1772823979224,0.44831887,1978.0,1977.4,0.56528424]
[1772823979727,0.44831887,1978.2,1977.4,0.56528424]
[1772823983531,0.45745059,1978.4,1977.4,0.56528424]
[1772823983727,6.99964291,1978.3,1977.4,0.56528424]
[1772823983929,6.05115112,1978.2,1977.4,0.56528424]
[1772823984129,0.45745059,1978.3,1977.4,0.56528424]
[1772823984432,6.05108655,1978.2,1977.5,0.56528424]
[1772823984629,0.45745059,1978.3,1977.5,41.36528424]